bitfinex/quotes_ETHUSD_20250708
["timestamp","ask_amount","ask_price","bid_price","bid_amount"]
[1751986057057,3.87845117,2578.4,2578.0,6.09278975]
[1751986057647,3.87853235,2578.3,2578.0,6.09278975]
[1751986057843,1e-08,2578.4,2578.0,9.97175554]
[1751986058053,3.87841843,2578.4,2578.0,6.054]
[1751986058765,0.1936,2578.3,2578.1,3.87881167]
[1751986058941,0.1936,2578.3,2578.2,6.05]
[1751986059751,0.1936,2578.3,2578.2,9.92867504]
[1751986059956,1e-08,2578.4,2578.3,3.8785246]
[1751986060152,1e-08,2578.4,2578.3,3.91730984]
[1751986061458,1e-08,2578.4,2578.3,3.8785246]
[1751986061652,1e-08,2578.4,2578.3,3.91730984]
[1751986061859,1e-08,2578.4,2578.3,3.8785246]
[1751986062739,1e-08,2578.4,2578.3,6.049]
[1751986063167,1e-08,2578.4,2578.3,6.08778524]
[1751986063764,1e-08,2578.4,2578.3,9.96630984]
[1751986063947,1e-08,2578.4,2578.3,9.9275246]
[1751986065278,1e-08,2578.4,2578.3,11.32760306]
[1751986065778,1e-08,2578.4,2578.3,12.34000306]
[1751986065940,0.002,2579.5,2579.0,4.69627188]
[1751986066139,0.002,2579.5,2579.4,4.88927059]
[1751986066384,0.002,2579.5,2579.4,19.01591966]
[1751986066544,0.002,2579.5,2579.4,18.97715096]
[1751986067032,0.002,2579.5,2579.4,20.48615096]
[1751986067235,0.002,2579.5,2579.4,18.97715096]
[1751986067442,0.002,2579.5,2579.4,20.48615096]
[1751986068084,0.002,2579.5,2579.4,12.158]
[1751986068255,0.3512,2579.5,2579.4,12.158]
[1751986068777,0.3512,2579.5,2578.8,9.318]
[1751986068942,0.1936,2579.1,2578.8,9.318]
[1751986069146,0.1936,2579.1,2578.9,6.078]
[1751986069343,0.1936,2579.1,2579.0,6.078]
[1751986069585,0.1936,2579.1,2578.8,9.318]
[1751986070083,0.1936,2579.1,2578.9,6.078]
[1751986070584,3.87736158,2579.1,2579.0,6.076]
[1751986070758,4.65667958,2579.1,2579.0,6.076]
[1751986070959,0.779318,2579.1,2579.0,6.076]
[1751986071386,0.03873733,2579.3,2579.0,6.076]
[1751986071577,3.87717121,2579.2,2579.0,6.076]
[1751986071777,0.03873733,2579.1,2579.0,6.076]
[1751986072974,3.91605887,2579.1,2579.0,6.076]
[1751986073389,0.03873733,2579.1,2578.8,9.318]
[1751986073605,0.03873733,2579.1,2578.9,6.074]
[1751986073606,0.1936,2579.0,2578.9,6.074]
[1751986074590,0.1936,2579.0,2578.9,6.068]
[1751986074966,4.07107188,2579.0,2578.9,6.068]
[1751986075161,4.03329135,2578.9,2578.5,0.1936]
[1751986075474,0.1936,2578.8,2578.6,6.068]
[1751986076392,3.91676874,2578.7,2578.3,1.509]
[1751986076696,4.07167675,2578.6,2578.3,1.509]
[1751986077189,4.07167675,2578.6,2578.4,6.066]
[1751986077406,4.07167675,2578.6,2578.2,4.07226118]
[1751986077407,0.1936,2578.6,2578.2,4.07226118]
[1751986077610,4.07167606,2578.6,2578.3,6.065]
[1751986077810,4.07167606,2578.6,2578.1,5.3887408]
[1751986077811,0.03873733,2578.5,2578.1,5.3887408]
[1751986078017,0.1936,2578.4,2578.2,6.065]
[1751986078713,0.1936,2578.4,2578.2,9.94365511]
[1751986079010,0.1936,2578.4,2578.2,6.065]
[1751986079309,0.1936,2578.4,2578.2,9.94365669]
[1751986079518,0.1936,2578.4,2578.3,6.061]
[1751986080224,0.1936,2578.4,2578.3,9.9395246]
[1751986080596,0.1936,2578.4,2578.3,6.061]
[1751986080796,0.1936,2578.4,2578.3,9.9395246]
[1751986081504,0.1936,2578.7,2578.3,11.15669311]
[1751986081713,10.1556,2579.2,2578.9,3.87760466]
[1751986081889,10.1556,2579.2,2578.9,9.93960466]
[1751986082084,0.1936,2579.1,2578.9,9.93960466]
[1751986082317,0.1936,2579.1,2579.0,3.87747188]
[1751986082686,0.1936,2579.1,2578.9,6.062]
[1751986083520,0.1936,2579.1,2579.0,6.059]
[1751986088032,0.002,2579.5,2579.3,3.87695988]
[1751986088336,0.002,2579.5,2579.4,6.054]
[1751986088533,0.002,2579.5,2579.4,9.93387059]
[1751986088912,0.002,2579.5,2579.2,3.87702585]
[1751986089233,0.002,2579.5,2579.3,9.93300259]
[1751986089416,3.87884634,2579.5,2579.0,4.64186898]
[1751986089601,0.8427962,2579.5,2579.1,6.055]
[1751986089941,3.87696352,2579.4,2579.1,6.055]
[1751986090232,0.03873733,2579.3,2579.1,6.055]
[1751986090434,3.91576676,2579.3,2579.1,6.055]
[1751986090731,0.03873733,2579.3,2579.1,6.055]
[1751986090916,3.87702342,2579.3,2579.1,6.055]
[1751986091122,3.87717121,2579.2,2579.1,6.055]
[1751986091323,3.91590854,2579.2,2579.1,6.055]
[1751986091536,3.91578507,2579.3,2579.1,6.052]
[1751986091711,0.03873733,2579.3,2579.1,6.052]
[1751986092421,3.9157807,2579.3,2579.1,6.052]
[1751986092739,3.87717121,2579.2,2579.1,6.052]
[1751986093205,4.03294061,2579.1,2578.6,3.87798169]
[1751986093406,0.03873733,2579.0,2578.7,7.559]
[1751986093639,0.1556,2579.1,2578.7,11.43683718]
[1751986094042,4.03293032,2579.1,2578.7,7.559]
[1751986094340,3.91632803,2579.0,2578.7,7.559]
[1751986094522,0.03873733,2579.0,2578.7,7.559]
[1751986094934,3.91621474,2579.0,2578.7,7.559]
[1751986095142,4.71122304,2579.0,2578.6,6.046]
[1751986095452,3.87784494,2578.8,2578.6,6.046]
[1751986095742,3.87784494,2578.8,2578.6,6.051]
[1751986095743,0.03873733,2578.8,2578.6,6.051]
[1751986096724,0.03873733,2578.9,2578.6,6.051]
[1751986096929,3.9163611,2578.9,2578.6,6.051]
[1751986097129,3.87777765,2578.8,2578.6,6.051]
[1751986098031,0.1936,2578.7,2578.6,6.051]
[1751986098648,4.07152298,2578.7,2578.6,6.051]
[1751986098948,3.87811324,2578.6,2578.2,5.38858665]
[1751986099137,3.87811324,2578.6,2578.3,6.051]
[1751986099333,4.07182929,2578.5,2578.1,0.001]
[1751986099633,0.03873733,2578.4,2578.2,6.046]
[1751986099832,0.1936,2578.3,2578.2,6.046]
[1751986100849,0.1936,2578.3,2578.2,9.92467504]
[1751986101055,0.1936,2578.3,2578.2,6.046]
[1751986101732,0.1936,2578.3,2578.1,6.044]
[1751986102330,0.1936,2578.3,2578.2,3.87867504]
[1751986102551,0.1936,2578.3,2578.2,5.25882205]
[1751986102977,4.03329178,2578.9,2578.4,3.87827143]
[1751986103168,0.1936,2578.7,2578.5,9.9251529]
[1751986103344,0.03873733,2579.0,2578.6,3.87807337]
[1751986103547,0.1936,2578.8,2578.6,3.87807337]
[1751986103749,0.1936,2578.8,2578.6,3.87801861]
[1751986103952,0.1936,2578.8,2578.5,9.92515357]
[1751986104175,0.1936,2578.8,2578.6,3.87805846]
[1751986104578,0.1936,2578.8,2578.5,9.92515415]
[1751986105374,0.03873733,2578.7,2578.5,6.047]
[1751986105686,0.1936,2578.6,2578.3,3.87847154]
[1751986105973,0.1936,2578.6,2578.4,6.047]
[1751986106381,0.1936,2578.6,2578.4,9.92536603]
[1751986106879,0.1936,2578.6,2578.4,9.92529158]
[1751986107068,0.1936,2578.6,2578.5,3.87822377]
[1751986107472,0.002,2579.1,2578.8,3.87771644]
[1751986107673,0.002,2579.1,2578.9,6.045]
[1751986108484,3.87932983,2579.1,2578.9,6.045]
[1751986108708,0.002,2579.1,2578.9,6.045]
[1751986108894,0.002,2579.1,2578.9,9.92249223]
[1751986109095,0.1956,2579.1,2578.9,9.92249223]
[1751986109600,0.1956,2579.1,2579.0,3.87747188]
[1751986109806,0.1956,2579.1,2579.0,9.92147188]
[1751986110289,0.1956,2579.1,2579.0,6.044]
[1751986110599,0.1956,2579.1,2579.0,9.92147188]
[1751986112681,0.002,2579.1,2579.0,11.53416993]
[1751986112888,0.002,2579.1,2579.0,12.28846993]
[1751986113189,0.002,2579.1,2579.0,12.48206993]
[1751986115593,0.002,2579.1,2579.0,6.43806993]
[1751986115908,0.002,2579.1,2579.0,6.47684464]
[1751986116911,0.002,2579.1,2579.0,12.47506993]
[1751986122612,0.002,2579.1,2579.0,6.43806993]
[1751986122801,0.002,2579.1,2578.8,3.8777726]
[1751986123008,0.002,2579.1,2579.0,3.87747188]
[1751986124413,0.002,2579.1,2578.9,3.91627394]
[1751986124581,0.19633733,2579.1,2578.8,3.87775066]
[1751986124779,0.19633733,2579.1,2578.7,3.87783414]
[1751986124983,0.38993733,2579.1,2578.7,3.87783414]
[1751986125280,3.87757472,2579.0,2578.4,4.6418326]
[1751986125484,4.50044539,2579.1,2579.0,0.001]
[1751986126090,0.62303425,2579.1,2579.0,0.001]
[1751986126290,0.1576,2579.1,2579.0,0.001]
[1751986126521,0.002,2579.1,2579.0,0.001]
[1751986127083,0.002,2579.1,2579.0,3.87847188]
[1751986127288,0.1956,2579.1,2579.0,0.001]
[1751986132326,4.07292154,2579.1,2579.0,0.001]
[1751986132501,5.6407699,2579.1,2579.0,0.001]
[1751986132706,5.83510723,2579.1,2579.0,0.001]
[1751986133917,0.1956,2579.1,2579.0,0.001]
[1751986134400,0.23433733,2579.1,2579.0,0.001]
[1751986135297,4.11165887,2579.1,2579.0,0.001]
[1751986135929,22.94441321,2579.1,2579.0,0.001]
[1751986136101,22.90567588,2579.1,2579.0,0.001]
[1751986136836,22.90625943,2579.1,2579.0,0.001]
[1751986137046,29.88225943,2579.1,2579.0,0.001]
[1751986137246,33.88225943,2579.1,2579.0,0.001]
[1751986138038,34.43225943,2579.1,2579.0,0.001]
[1751986138758,30.43225943,2579.1,2579.0,0.001]
[1751986138933,34.21418131,2579.1,2579.0,0.001]
[1751986139456,23.13597014,2579.1,2579.0,0.001]
[1751986139645,21.75352154,2579.1,2579.0,0.001]
[1751986139838,23.1361008,2579.1,2579.0,0.001]
[1751986142353,23.6861008,2579.1,2579.0,0.001]
[1751986144250,27.6861008,2579.1,2579.0,0.001]
[1751986145353,27.6861008,2579.1,2579.0,1e-08]
[1751986145687,37.30416155,2579.1,2579.0,1e-08]
[1751986146594,38.06030234,2579.1,2579.0,1e-08]
[1751986146751,4.03427504,2578.2,2578.1,0.001]
[1751986147077,12.36829525,2578.2,2578.1,0.001]
[1751986147278,12.32955792,2578.2,2578.1,0.001]
[1751986147977,22.87955792,2578.2,2578.1,0.001]
[1751986148484,32.14997001,2578.2,2578.1,0.001]
[1751986148682,4.42897595,2578.0,2577.9,0.001]
[1751986148895,21.99582813,2578.0,2577.9,0.001]
[1751986149050,21.9570908,2578.0,2577.9,1e-08]
[1751986149775,25.9570908,2578.0,2577.9,1e-08]
[1751986150970,27.3358378,2578.0,2577.9,1e-08]
[1751986151480,35.2258378,2578.0,2577.9,1e-08]
[1751986152259,29.50439408,2578.0,2577.9,1e-08]
[1751986152610,37.00839408,2578.0,2577.9,1e-08]
[1751986153382,36.7148378,2578.0,2577.9,1e-08]
[1751986153588,35.3360908,2578.0,2577.9,1e-08]
[1751986153889,31.3360908,2578.0,2577.9,1e-08]
[1751986154252,23.8330908,2578.0,2577.9,1e-08]
[1751986154586,30.7850908,2578.0,2577.9,1e-08]
[1751986155297,31.3350908,2578.0,2577.9,1e-08]
[1751986155587,32.71150653,2578.0,2577.9,1e-08]
[1751986155773,32.71150649,2578.0,2577.9,1e-08]
[1751986156703,36.71150649,2578.0,2577.9,1e-08]
[1751986157305,29.20950649,2578.0,2577.9,1e-08]
[1751986157613,35.3330908,2578.0,2577.9,1e-08]
[1751986158679,35.3340908,2578.0,2577.9,1e-08]
[1751986159604,35.3330908,2578.0,2577.9,1e-08]
[1751986159784,27.2830908,2578.0,2577.9,1e-08]
[1751986160122,34.6264908,2578.0,2577.9,1e-08]
[1751986160310,29.26797595,2578.0,2577.9,1e-08]
[1751986161705,40.34518712,2578.0,2577.9,1e-08]
[1751986161905,41.8766759,2578.0,2577.9,1e-08]
[1751986162409,31.98969995,2578.0,2577.9,1e-08]
[1751986162628,41.8766759,2578.0,2577.9,1e-08]
[1751986163180,45.8766759,2578.0,2577.9,1e-08]
[1751986163592,27.69486473,2578.0,2577.9,1e-08]
[1751986163791,34.64286473,2578.0,2577.9,1e-08]
[1751986164195,27.14486473,2578.0,2577.9,1e-08]
[1751986164486,34.65786473,2578.0,2577.9,1e-08]
[1751986165297,27.43895348,2578.0,2577.9,1e-08]
[1751986165497,34.94995348,2578.0,2577.9,1e-08]
[1751986166712,34.65586473,2578.0,2577.9,1e-08]
[1751986167091,27.43899072,2578.0,2577.9,1e-08]
[1751986167398,36.80566246,2578.0,2577.9,1e-08]
[1751986167644,34.65586473,2578.0,2577.9,1e-08]
[1751986168517,35.20586473,2578.0,2577.9,1e-08]
[1751986168751,35.36146473,2578.0,2577.9,1e-08]
[1751986168892,35.65388513,2578.0,2577.9,1e-08]
[1751986169087,37.37366181,2578.0,2577.9,1e-08]
[1751986170106,37.37566181,2578.0,2577.9,1e-08]
[1751986170490,38.13995218,2578.0,2577.9,1e-08]
[1751986170790,36.14643308,2578.0,2577.9,1e-08]
[1751986172338,50.13925514,2578.0,2577.9,1e-08]
[1751986172641,50.13925514,2578.0,2577.5,0.001]
[1751986172642,10.1936,2577.9,2577.5,0.001]
[1751986172804,13.87954154,2577.7,2577.5,0.001]
[1751986173001,9.93931523,2577.6,2577.5,0.001]
[1751986173204,10.0,2577.7,2577.5,0.001]
[1751986173402,6.02,2577.6,2577.5,0.001]
[1751986174515,6.02,2577.6,2577.5,3.88065865]
[1751986175839,6.02,2577.6,2577.5,3.88066006]
[1751986175840,6.018,2577.6,2577.5,3.88066006]
[1751986176038,6.018,2577.6,2577.5,0.001]
[1751986176343,6.05673733,2577.6,2577.5,0.001]
[1751986176929,9.93631523,2577.6,2577.5,0.001]
[1751986177114,11.28198561,2577.6,2577.5,0.001]
[1751986178806,1.38440771,2577.6,2577.5,0.001]
[1751986179008,11.72476645,2577.9,2577.5,3.88072841]
[1751986179009,6.014,2577.7,2577.5,3.88072841]
[1751986179212,1.72676645,2578.0,2577.5,5.50648336]
[1751986179455,1.67800291,2577.9,2577.7,3.87929372]
[1751986179659,0.002,2578.0,2577.6,0.7741]
[1751986179819,0.002,2578.0,2577.8,3.87920291]
[1751986180016,6.016,2577.9,2577.8,3.87920291]
[1751986180222,6.016,2577.9,2577.8,4.66550291]
[1751986180455,6.016,2577.9,2577.8,4.6655769]
[1751986182433,0.002,2578.0,2577.8,0.7863]
[1751986182618,6.013,2577.9,2577.8,0.7863]
[1751986183952,0.1956,2578.0,2577.8,0.7863]
[1751986184347,6.04873733,2577.9,2577.5,0.7847]
[1751986184665,0.1936,2577.6,2577.5,0.7847]
[1751986184834,6.2026,2577.6,2577.5,0.7847]
[1751986185036,6.24133733,2577.6,2577.5,0.7847]
[1751986185240,10.12091523,2577.6,2577.5,0.001]
[1751986185431,10.68635531,2577.6,2577.5,0.001]
[1751986185850,6.80677741,2577.6,2577.5,0.001]
[1751986186031,10.72509264,2577.6,2577.5,0.001]
[1751986186361,10.68635531,2577.6,2577.5,0.001]
[1751986186757,6.80677741,2577.6,2577.5,0.001]
[1751986186958,6.2036,2577.6,2577.5,0.001]
[1751986187257,6.2026,2577.6,2577.5,4.67212841]
[1751986187628,6.2026,2577.6,2577.5,0.7924]
[1751986188558,0.1936,2577.6,2577.5,0.7924]
[1751986188727,6.2016,2577.6,2577.5,0.7924]
[1751986189357,0.1936,2577.6,2577.5,0.7924]
[1751986189558,6.2006,2577.6,2577.5,0.7924]
[1751986190340,11.51485429,2577.6,2577.5,0.001]
[1751986190542,7.59653906,2577.6,2577.5,0.001]
[1751986190742,11.51485429,2577.6,2577.5,0.001]
[1751986191034,7.59653906,2577.6,2577.5,0.001]
[1751986191244,6.23933733,2577.6,2577.5,0.001]
[1751986191564,10.11891523,2577.6,2577.5,0.001]
[1751986191762,10.0801779,2577.6,2577.5,0.001]
[1751986193049,12.16859959,2577.6,2577.5,0.001]
[1751986193459,22.16859959,2577.6,2577.5,0.001]
[1751986194436,30.05859959,2577.6,2577.5,0.001]
[1751986194736,30.3520416,2577.6,2577.5,0.001]
[1751986195743,31.1354416,2577.6,2577.5,0.001]
[1751986195948,30.84199959,2577.6,2577.5,0.001]
[1751986196152,31.13537804,2577.6,2577.5,0.001]
[1751986196369,30.84199959,2577.6,2577.5,0.001]
[1751986197262,31.13539684,2577.6,2577.5,0.001]
[1751986197851,31.68539684,2577.6,2577.5,0.001]
[1751986198257,31.39199959,2577.6,2577.5,0.001]
[1751986198867,31.68538028,2577.6,2577.5,0.001]
[1751986202074,31.39199959,2577.6,2577.5,0.001]
[1751986202279,31.68910682,2577.6,2577.5,0.001]
[1751986203147,9.46642169,2577.6,2577.5,0.001]
[1751986203449,17.9671779,2577.6,2577.5,0.001]
[1751986204085,17.7735779,2577.6,2577.5,0.001]
[1751986204376,13.894,2577.6,2577.5,0.001]
[1751986204552,6.004,2577.6,2577.5,0.001]
[1751986204752,0.002,2577.9,2577.6,4.63510794]
[1751986205060,7.38826879,2577.9,2577.6,5.09871873]
[1751986205263,9.88512663,2577.9,2577.6,1.21921079]
[1751986205467,6.006,2577.9,2577.6,1.21921079]
[1751986205656,6.04473733,2577.9,2577.6,5.09878603]
[1751986205848,6.04473733,2577.9,2577.6,0.7556]
[1751986206046,3.87934528,2577.8,2577.6,0.7556]
[1751986206554,3.8795779,2577.6,2577.5,0.001]
[1751986207085,3.91831523,2577.6,2577.5,0.001]
[1751986207246,17.63306739,2577.6,2577.5,0.001]
[1751986207447,17.59433006,2577.6,2577.5,0.001]
[1751986207644,17.59421061,2577.6,2577.5,0.001]
[1751986207957,17.29759033,2577.6,2577.5,0.001]
[1751986208164,17.59420131,2577.6,2577.5,0.001]
[1751986208364,17.29759033,2577.6,2577.5,0.001]
[1751986208578,17.59418155,2577.6,2577.5,0.001]
[1751986209459,17.29759033,2577.6,2577.5,0.001]
[1751986209856,11.38201243,2577.6,2577.5,0.001]
[1751986210084,1.486,2577.6,2577.5,0.001]
[1751986210284,7.49,2577.6,2577.5,0.001]
[1751986211786,11.3695779,2577.6,2577.5,0.001]
[1751986212158,12.89446946,2577.6,2577.5,0.001]
[1751986212370,14.27697503,2577.6,2577.5,0.001]
[1751986213890,6.78697503,2577.6,2577.5,0.001]
[1751986214188,12.82971236,2577.6,2577.5,0.001]
[1751986214499,11.26608347,2577.6,2577.5,0.001]
[1751986214664,1.38250557,2577.6,2577.5,0.001]
[1751986214856,6.004,2577.6,2577.5,0.001]
[1751986215491,9.92231523,2577.6,2577.5,0.001]
[1751986215685,11.26652359,2577.6,2577.5,0.001]
[1751986215991,7.38694569,2577.6,2577.5,0.001]
[1751986216195,7.42568302,2577.6,2577.5,0.001]
[1751986216689,7.42587452,2577.6,2577.5,0.001]
[1751986217098,7.38713719,2577.6,2577.5,0.001]
[1751986217264,11.26671509,2577.6,2577.5,0.001]
[1751986217465,7.38713719,2577.6,2577.5,0.001]
[1751986218489,11.26671509,2577.6,2577.5,0.001]
[1751986219376,7.38713719,2577.6,2577.5,0.001]
[1751986219578,1.38313719,2577.6,2577.5,0.7576]
[1751986219782,6.1976,2577.6,2577.5,0.7576]
[1751986220079,0.1936,2577.6,2577.5,0.7576]
[1751986220284,6.1976,2577.6,2577.5,0.7576]
[1751986220679,0.1936,2577.6,2577.5,4.63732841]
[1751986220873,6.1976,2577.6,2577.5,0.7576]
[1751986222373,10.0771779,2577.6,2577.5,0.001]
[1751986222898,11.47282861,2577.6,2577.5,0.001]
[1751986223105,10.0771779,2577.6,2577.5,0.001]
[1751986223480,6.1976,2577.6,2577.5,0.001]
[1751986224076,6.23633733,2577.6,2577.5,0.001]
[1751986224809,12.20467212,2577.6,2577.5,0.001]
[1751986224979,12.16593479,2577.6,2577.5,0.001]
[1751986225498,12.94633479,2577.6,2577.5,0.001]
[1751986227757,1.57675689,2577.6,2577.5,0.755]
[1751986228001,7.58075689,2577.6,2577.5,0.755]
[1751986228304,1.61549422,2577.6,2577.5,0.755]
[1751986228506,7.58075689,2577.6,2577.5,0.755]
[1751986228802,6.1976,2577.6,2577.5,0.755]
[1751986229005,0.1936,2577.6,2577.5,4.63472841]
[1751986229171,1.38630839,2577.9,2577.5,5.09830125]
[1751986229377,0.002,2577.9,2577.8,11.38410922]
[1751986229887,0.002,2577.9,2577.8,4.6332769]
[1751986230226,0.002,2577.9,2577.8,4.67206966]
[1751986230413,0.002,2577.9,2577.8,4.6332769]
[1751986230590,0.002,2577.9,2577.8,5.5426971]
[1751986231999,0.002,2577.9,2577.8,5.7362971]
[1751986233122,0.002,2577.9,2577.8,5.69750434]
[1751986234424,0.002,2577.9,2577.8,0.9476]
[1751986234588,0.002,2577.9,2577.6,1.0178]
[1751986234589,6.005,2577.9,2577.6,1.0178]
[1751986234794,0.03873733,2577.8,2577.6,0.8242]
[1751986234994,3.8795779,2577.6,2577.5,0.001]
[1751986235293,6.04173733,2577.6,2577.5,0.001]
[1751986235620,9.92131523,2577.6,2577.5,0.001]
[1751986235834,6.003,2577.6,2577.5,0.001]
[1751986236702,10.87468984,2577.6,2577.5,0.001]
[1751986236906,21.03028984,2577.6,2577.5,0.001]
[1751986237227,15.02728984,2577.6,2577.5,0.001]
[1751986237429,21.03228984,2577.6,2577.5,0.001]
[1751986237590,15.02728984,2577.6,2577.5,0.001]
[1751986237796,20.87568984,2577.6,2577.5,0.001]
[1751986238716,21.42568984,2577.6,2577.5,0.001]
[1751986241225,4.42987894,2577.4,2577.3,0.001]
[1751986241429,28.30676817,2577.4,2577.3,0.001]
[1751986241610,28.26803084,2577.4,2577.3,0.001]
[1751986241933,25.89087894,2577.4,2577.3,0.001]
[1751986242655,3.88018004,2577.2,2577.1,0.001]
[1751986242931,28.31402521,2577.2,2577.1,1e-08]
[1751986243117,32.27528788,2577.2,2577.1,1e-08]
[1751986244018,34.86966265,2577.2,2577.1,1e-08]
[1751986244392,32.57006423,2577.2,2577.1,1e-08]
[1751986244594,33.72775002,2577.2,2577.1,1e-08]
[1751986245023,36.02860924,2577.2,2577.1,1e-08]
[1751986246330,33.72775002,2577.2,2577.1,1e-08]
[1751986246499,3.88063176,2576.9,2576.8,1e-08]
[1751986246700,29.79647693,2576.9,2576.8,1e-08]
[1751986246897,30.74985154,2576.9,2576.8,1e-08]
[1751986247102,34.74985154,2576.9,2576.8,1e-08]
[1751986247298,14.58713553,2576.3,2576.2,1e-08]
[1751986247528,29.46082789,2576.3,2576.2,1e-08]
[1751986248317,33.45965513,2576.3,2576.2,1e-08]
[1751986248632,33.24182132,2576.3,2576.2,1e-08]
[1751986248827,31.20582132,2576.3,2576.2,1e-08]
[1751986249029,32.69182132,2576.3,2576.2,1e-08]
[1751986249815,32.53622132,2576.3,2576.2,1e-08]
[1751986250011,28.53622132,2576.3,2576.2,1e-08]
[1751986250213,27.05022132,2576.3,2576.2,1e-08]
[1751986250424,29.08622132,2576.3,2576.2,1e-08]
[1751986251436,27.71868579,2576.3,2576.2,1e-08]
[1751986251624,16.011,2576.3,2576.2,1e-08]
[1751986252647,12.011,2576.3,2576.2,3.88168621]
[1751986252844,12.011,2576.3,2576.2,1e-08]
[1751986254133,15.89253553,2576.3,2576.2,1e-08]
[1751986254342,26.59813553,2576.3,2576.2,1e-08]
[1751986255068,34.48813553,2576.3,2576.2,1e-08]
[1751986255417,33.93813553,2576.3,2576.2,1e-08]
[1751986255659,35.26953553,2576.3,2576.2,1e-08]
[1751986255859,31.388,2576.3,2576.2,1e-08]
[1751986256021,29.901,2576.3,2576.2,1e-08]
[1751986256523,13.896,2576.3,2576.2,1e-08]
[1751986258265,10.811,2576.7,2576.3,3.88145983]
[1751986258422,10.811,2576.7,2576.2,3.88159844]
[1751986258423,6.04673733,2576.6,2576.2,3.88159844]
[1751986258745,0.1936,2576.3,2576.2,1e-08]
[1751986259072,6.24333733,2576.3,2576.2,1e-08]
[1751986259260,0.23233733,2576.3,2576.2,3.88168621]
[1751986259568,6.2046,2576.3,2576.2,1e-08]
[1751986259720,6.2046,2576.3,2576.2,4.73446852]
[1751986260159,9.324,2576.7,2576.4,3.88128606]
[1751986260331,6.01,2576.6,2576.5,0.8283]
[1751986260537,6.04873733,2576.6,2576.5,0.8283]
[1751986261656,6.011,2576.6,2576.5,4.70953423]
[1751986261955,0.1936,2576.7,2576.5,1.6873982]
[1751986262154,6.2046,2576.7,2576.6,3.88108359]
[1751986262936,0.1936,2576.7,2576.6,3.88108359]
[1751986263137,6.2056,2576.7,2576.6,3.88108359]
[1751986263458,0.002,2576.9,2576.7,3.88093297]
[1751986263651,6.2076,2576.9,2576.8,4.65138236]
[1751986263976,0.1956,2576.9,2576.8,4.65138236]
[1751986264459,0.1956,2576.9,2576.8,5.50461389]
[1751986265166,0.002,2576.9,2576.8,5.50461389]
[1751986265377,0.002,2576.9,2576.8,5.73702171]
[1751986265754,0.002,2576.9,2576.8,5.74282171]
[1751986266690,0.002,2576.9,2576.7,3.88093297]
[1751986266691,0.002,2576.9,2576.6,3.88099325]
[1751986266843,0.1956,2576.9,2576.6,4.71099325]
[1751986267045,0.03873733,2576.8,2576.4,0.83]
[1751986267254,0.1936,2576.6,2576.4,4.71128545]
[1751986267787,0.1936,2576.6,2576.5,3.88123423]
[1751986267942,6.011,2576.9,2576.6,3.88094064]
[1751986268142,0.1936,2576.8,2576.7,3.88093297]
[1751986268342,0.1936,2576.8,2576.7,4.68243297]
[1751986269182,0.1936,2576.8,2576.7,0.8015]
[1751986269352,7.53773733,2576.9,2576.2,1e-08]
[1751986269549,0.6011,2576.8,2576.2,1e-08]
[1751986269889,7.499,2576.9,2576.5,3.88117071]
[1751986270098,0.03873733,2576.8,2576.5,3.88117071]
[1751986270375,0.03873733,2576.8,2576.5,3.88112844]
[1751986270579,6.011,2576.9,2576.4,3.88138487]
[1751986270762,6.011,2576.9,2576.5,3.88119264]
[1751986271076,0.002,2576.9,2576.6,3.88106531]
[1751986271259,6.016,2576.9,2576.7,3.88091408]
[1751986271458,0.002,2576.9,2576.7,0.7816]
[1751986271778,6.015,2576.9,2576.7,4.66244785]
[1751986271974,6.015,2576.9,2576.7,0.7816]
[1751986272183,0.002,2576.9,2576.7,4.66244863]
[1751986272350,0.002,2576.9,2576.7,5.51682896]
[1751986272679,0.002,2576.9,2576.8,3.88078236]
[1751986273253,0.002,2576.9,2576.7,5.51682223]
[1751986273481,0.002,2576.9,2576.7,1.635954]
[1751986273973,0.002,2576.9,2576.7,4.66238609]
[1751986274583,0.002,2576.9,2576.8,3.88078236]
[1751986275685,0.002,2576.9,2576.7,4.66245271]
[1751986275878,0.002,2576.9,2576.8,3.88078236]
[1751986276783,0.002,2576.9,2576.8,3.91959018]
[1751986277079,0.002,2576.9,2576.8,5.56039447]
[1751986277591,0.002,2576.9,2576.8,5.52158665]
[1751986277947,0.002,2576.9,2576.8,5.56039447]
[1751986278262,0.002,2576.9,2576.8,5.52158665]
[1751986279182,0.002,2576.9,2576.8,5.56039447]
[1751986279377,0.002,2576.9,2576.8,5.75399447]
[1751986280463,0.002,2576.9,2576.8,5.71518665]
[1751986280858,0.002,2576.9,2576.8,1.83440429]
[1751986281182,0.002,2576.9,2576.8,4.66338236]
[1751986281377,0.002,2576.9,2576.8,4.70219018]
[1751986281581,0.002,2576.9,2576.8,4.89579018]
[1751986281770,0.002,2576.9,2576.8,4.85698236]
[1751986284955,0.002,2576.9,2576.8,11.64691434]
[1751986285153,0.002,2576.9,2576.8,14.76168927]
[1751986285777,0.002,2576.9,2576.8,8.01056511]
[1751986285962,0.002,2576.9,2576.8,20.76668927]
[1751986286652,0.002,2576.9,2576.8,14.01556511]
[1751986286858,0.002,2576.9,2576.8,0.9762]
[1751986287161,0.002,2576.9,2576.8,0.7826]
[1751986287479,0.002,2576.9,2576.6,1.0049]
[1751986287882,0.002,2576.9,2576.7,3.91966401]
[1751986288992,0.002,2576.9,2576.7,0.03880932]
[1751986289291,0.002,2576.9,2576.7,3.91973407]
[1751986289786,0.002,2576.9,2576.8,10.63190652]
[1751986290087,0.002,2576.9,2576.8,11.61910652]